Workbook

Sheet Welcome

Sheet Size SDS (hidden)
A1: pixel width | B1: pixel height | G1: Regrah allows you to transform a picture back to raw data in excel
A2: 223.0445709 | B2: 245.8114166 | G2: Help : Copy and paste your graph (image) in this spreadsheet. Move it to the background
A3: x origin | B3: y origin | Q3: vSDS=4.36*10-22
A4: 280 | B4: 1.5 | O4: Equation parameters
A5: x real | B5: y real | G5: Click on initialize + Move the red frame over your graph and position it for calibration
A6: 80 | B6: 3 | G6: For non linear axis, adjust the frame to cover exact decades | O6: kc | P6: 0.00649978741
A7: Calib x | B7: Calib y | G7: Click on calibration and fill in the numbers | O7: r0 | P7: 1.951108244
A8: 0.3586727068 | B8: 0.01220447789 | G8: Move the top right corner of the red frame over the points to capture + click on capture | O8: r1 | P8: 0.3278326842
A9: x decades | B9: y decades | G9: Your data will populate the x and y columns starting from line 11. Enjoy ! | O9: alpha | P9: 0.004325169614 | S9: Calculator | U9: AFE | V9: AAFE
M10: Inputs | O10: Se | P10: 0.8117745348 | U10: =10^(SUM(U14:U71)/COUNTA(U14:U71)) -> 0.9995181448 | V10: =10^(SUM(V14:V71)/COUNTA(V14:V71)) -> 1.013297293
A11: 45 | G11: Don't change cells from A1 to B10 , Don't delete the red frame | M11: =MAX(M14:M72) -> 346.7646855 | N11: =MAX(N14:N57) -> 10 | O11: 360.4679667 | P11: =MAX(P14:P57) -> 87.31796674
A12: X value | B12: Y value | G12: Unable your macro functions in Excel | M12: =MIN(M14:M72) -> 0.2518305879 | N12: =MIN(N14:N57) -> 0.5 | O12: 283.7431873 | P12: =MIN(P14:P57) -> 10.59318734 | T12: =SUM(T14:T71) -> 0.3212654156
A13: 284.4448022 | B13: 3.099536162 | C13: =(B13*10000*3/4/PI())^(1/3)/10 -> 1.948659831 | K13: Added NaCl (mM) | M13: SDS (mM) | N13: % SDS | O13: T(K) | P13: T(°C) | Q13: Aggregation | R13: Radius (nm) | S13: Calc Radius (nm)
A14: 294.0353997 | B14: 2.880253431 | C14: =(B14*10000*3/4/PI())^(1/3)/10 -> 1.901577505 | K14: 0 | M14: =N14*10/288.38*1000 -> 17.33823427 | N14: 0.5 | O14: 284.4448022 | P14: =O14-273.15 -> 11.29480224 | Q14: 61.42222792 | R14: 1.948659831 | S14: =IF(K14=0, $P$7+$P$8*(1-EXP(-$P$6*M14))-($P$9*(P14)), ($P$7+$P$8*(1-EXP(-$P$6*M14))-($P$9*(P14)))*$P$10*EXP(0.5*LOG(K14))) -> 1.937195648 | T14: =ABS(LOG(S14/R14)) -> 0.002562547996 | U14: =LOG(S14/R14) -> -0.002562547996 | V14: =ABS(U14) -> 0.002562547996
A15: 303.1581694 | B15: 2.684849192 | C15: 1.8575639 | K15: 0 | M15: =N15*10/288.38*1000 -> 17.33823427 | N15: 0.5 | O15: 294.0353997 | P15: =O15-273.15 -> 20.88539975 | Q15: 58.19858189 | R15: 1.901577505 | S15: =IF(K15=0, $P$7+$P$8*(1-EXP(-$P$6*M15))-($P$9*(P15)), ($P$7+$P$8*(1-EXP(-$P$6*M15))-($P$9*(P15)))*$P$10*EXP(0.5*LOG(K15))) -> 1.895714687 | T15: =ABS(LOG(S15/R15)) -> 0.00134105625 | U15: =LOG(S15/R15) -> -0.00134105625 | V15: =ABS(U15) -> 0.00134105625
A16: 313.2165948 | B16: 2.500984326 | C16: 1.814153873 | K16: 0 | M16: 17.33823427 | N16: 0.5 | O16: 303.1581694 | P16: 30.00816939 | Q16: 53.94749293 | R16: 1.8575639 | S16: =IF(K16=0, $P$7+$P$8*(1-EXP(-$P$6*M16))-($P$9*(P16)), ($P$7+$P$8*(1-EXP(-$P$6*M16))-($P$9*(P16)))*$P$10*EXP(0.5*LOG(K16))) -> 1.856257161 | T16: 0.0003056202329 | U16: -0.0003056202329 | V16: 0.0003056202329
A17: 321.8715359 | B17: 2.345378257 | C17: 1.775721127 | K17: 0 | M17: 17.33823427 | N17: 0.5 | O17: 313.2165948 | P17: 40.06659477 | Q17: 49.43956052 | R17: 1.814153873 | S17: =IF(K17=0, $P$7+$P$8*(1-EXP(-$P$6*M17))-($P$9*(P17)), ($P$7+$P$8*(1-EXP(-$P$6*M17))-($P$9*(P17)))*$P$10*EXP(0.5*LOG(K17))) -> 1.812752765 | T17: 0.0003355439046 | U17: -0.0003355439046 | V17: 0.0003355439046
A18: 332.3978158 | B18: 2.157932833 | C18: 1.727095839 | K18: 0 | M18: 17.33823427 | N18: 0.5 | O18: 321.8715359 | P18: 48.72153586 | Q18: 44.93159505 | R18: 1.775721127 | S18: =IF(K18=0, $P$7+$P$8*(1-EXP(-$P$6*M18))-($P$9*(P18)), ($P$7+$P$8*(1-EXP(-$P$6*M18))-($P$9*(P18)))*$P$10*EXP(0.5*LOG(K18))) -> 1.775318677 | T18: 9.843973383e-05 | U18: -9.843973383e-05 | V18: 9.843973383e-05
A19: 341.5205895 | B19: 2.026204232 | C19: 1.69121259 | K19: 0 | M19: 17.33823427 | N19: 0.5 | O19: 332.3978158 | P19: 59.24781579 | Q19: 35.1450376 | R19: 1.727095839 | S19: 1.729790731 | T19: 0.0006771277947 | U19: 0.0006771277947 | V19: 0.0006771277947
A20: 351.1111877 | B20: 1.862637323 | C20: 1.644421819 | K20: 0 | M20: 17.33823427 | N20: 0.5 | O20: 341.5205895 | P20: 68.37058954 | Q20: 30.63710368 | R20: 1.69121259 | S20: 1.690333187 | T20: 0.0002258846457 | U20: -0.0002258846457 | V20: 0.0002258846457
A21: 360.2339286 | B21: 1.754786261 | C21: 1.612050114 | K21: 0 | M21: 17.33823427 | N21: 0.5 | O21: 351.1111877 | P21: 77.96118773 | Q21: 24.58794565 | R21: 1.644421819 | S21: 1.648852223 | T21: 0.001168503613 | U21: 0.001168503613 | V21: 0.001168503613
A22: 284.2109588 | B22: 3.199424569 | C22: 1.969371984 | K22: 0 | M22: 34.67646855 | N22: 1 | O22: 360.2339286 | P22: 87.08392864 | Q22: 69.26936263 | R22: 1.612050114 | S22: 1.64061044 | T22: 0.007626932153 | U22: 0.007626932153 | V22: 0.007626932153
A23: 293.8015559 | B23: 2.975764513 | C23: 1.922368539 | K23: 0 | M23: 34.67646855 | N23: 1 | O23: 284.2109588 | P23: 11.06095877 | Q23: 65.27518023 | R23: 1.969371984 | S23: 1.969422679 | T23: 1.117938856e-05 | U23: 1.117938856e-05 | V23: 1.117938856e-05
A24: 303.1582269 | B24: 2.796278928 | C24: 1.882914617 | K24: 0 | M24: 34.67646855 | N24: 1 | O24: 293.8015559 | P24: 20.65155593 | Q24: 61.02406122 | R24: 1.922368539 | S24: 1.92794172 | T24: 0.001257251 | U24: 0.001257251 | V24: 0.001257251
A25: 313.4505781 | B25: 2.576996197 | C25: 1.832349818 | K25: 0 | M25: 34.67646855 | N25: 1 | O25: 303.1582269 | P25: 30.00822686 | Q25: 55.74546923 | R25: 1.882914617 | S25: 1.887472531 | T25: 0.001050013033 | U25: 0.001050013033 | V25: 0.001050013033
A26: 322.3394479 | B26: 2.421389104 | C26: 1.794700532 | K26: 0 | M26: 34.67646855 | N26: 1 | O26: 313.4505781 | P26: 40.30057814 | Q26: 51.63567347 | R26: 1.832349818 | S26: 1.842956366 | T26: 0.002506663509 | U26: 0.002506663509 | V26: 0.002506663509
A27: 332.397876 | B27: 2.249864242 | C27: 1.751281264 | K27: 0 | M27: 34.67646855 | N27: 1 | O27: 322.3394479 | P27: 49.18944787 | Q27: 46.87086155 | R27: 1.794700532 | S27: 1.804510497 | T27: 0.002367421186 | U27: 0.002367421186 | V27: 0.002367421186
A28: 341.2867156 | B28: 2.110174871 | C28: 1.714259688 | K28: 0 | M28: 34.67646855 | N28: 1 | O28: 332.397876 | P28: 59.24787599 | Q28: 42.61977409 | R28: 1.751281264 | S28: 1.761006089 | T28: 0.002404956315 | U28: 0.002404956315 | V28: 0.002404956315
A29: 351.1112425 | B29: 1.986405131 | C29: 1.680066245 | K29: 0 | M29: 34.67646855 | N29: 1 | O29: 341.2867156 | P29: 68.13671562 | Q29: 38.62553009 | R29: 1.714259688 | S29: 1.72256035 | T29: 0.00209783384 | U29: 0.00209783384 | V29: 0.00209783384
A30: 360.0000821 | B30: 1.838756899 | C30: 1.637363992 | K30: 0 | M30: 34.67646855 | N30: 1 | O30: 351.1112425 | P30: 77.96124246 | Q30: 34.37444113 | R30: 1.680066245 | S30: 1.680067605 | T30: 3.514960759e-07 | U30: 3.514960759e-07 | V30: 3.514960759e-07
A31: 283.9770872 | B31: 3.48676017 | C31: 2.026645657 | K31: 0 | M31: 69.3529371 | N31: 2 | O31: 360.0000821 | P31: 86.85008209 | Q31: 90.89729729 | R31: 1.637363992 | S31: 1.694427092 | T31: 0.01487765132 | U31: 0.01487765132 | V31: 0.01487765132
A32: 294.2694119 | B32: 3.255139344 | C32: 1.980737809 | K32: 0 | M32: 69.3529371 | N32: 2 | O32: 283.9770872 | P32: 10.82708725 | Q32: 84.07754241 | R32: 2.026645657 | S32: 2.023239439 | T32: 0.0007305402173 | U32: -0.0007305402173 | V32: 0.0007305402173
A33: 303.1582542 | B33: 3.05973613 | C33: 1.940283193 | K33: 0 | M33: 69.3529371 | N33: 2 | O33: 294.2694119 | P33: 21.11941185 | Q33: 78.28529357 | R33: 1.980737809 | S33: 1.978723389 | T33: 0.0004419043284 | U33: -0.0004419043284 | V33: 0.0004419043284
A34: 313.4506356 | B34: 2.864330866 | C34: 1.898066939 | K34: 0 | M34: 69.3529371 | N34: 2 | O34: 303.1582542 | P34: 30.00825422 | Q34: 72.74988517 | R34: 1.940283193 | S34: 1.940277638 | T34: 1.243306107e-06 | U34: -1.243306107e-06 | V34: 1.243306107e-06
A35: 322.1055493 | B35: 2.700764028 | C35: 1.861226999 | K35: 0 | M35: 69.3529371 | N35: 2 | O35: 313.4506356 | P35: 40.30063561 | Q35: 67.98501615 | R35: 1.898066939 | S35: 1.895761343 | T35: 0.0005278613263 | U35: -0.0005278613263 | V35: 0.0005278613263 | AB35: https://media.beckman.com/-/media/pdf-assets/application-notes/particle-delsamax-application-note-hydrodynamic-size-surfactant-micelles
A36: 332.1639747 | B36: 2.537197096 | C36: 1.822867906 | K36: 0 | M36: 69.3529371 | N36: 2 | O36: 322.1055493 | P36: 48.95554933 | Q36: 62.70645421 | R36: 1.861226999 | S36: 1.858327373 | T36: 0.0006771195741 | U36: -0.0006771195741 | V36: 0.0006771195741
A37: 341.286743 | B37: 2.397507725 | C37: 1.788780844 | K37: 0 | M37: 69.3529371 | N37: 2 | O37: 332.1639747 | P37: 59.01397471 | Q37: 59.22592867 | R37: 1.822867906 | S37: 1.814822978 | T37: 0.001920929509 | U37: -0.001920929509 | V37: 0.001920929509
A38: 351.1112698 | B38: 2.257820216 | C38: 1.75334313 | K38: 0 | M38: 69.3529371 | N38: 2 | O38: 341.286743 | P38: 68.13674299 | Q38: 54.4610897 | R38: 1.788780844 | S38: 1.775365457 | T38: 0.003269369552 | U38: -0.003269369552 | V38: 0.003269369552
A39: 360.0001095 | B39: 2.118131823 | C39: 1.71641167 | K39: 0 | M39: 69.3529371 | N39: 2 | O39: 351.1112698 | P39: 77.96126983 | Q39: 50.46690729 | R39: 1.75334313 | S39: 1.732872712 | T39: 0.005100253071 | U39: -0.005100253071 | V39: 0.005100253071
A40: 284.2110152 | B40: 4.02521404 | C40: 2.126017279 | K40: 0 | M40: 173.3823427 | N40: 5 | O40: 360.0001095 | P40: 86.85010946 | Q40: 100.1699785 | R40: 1.71641167 | S40: 1.797074951 | T40: 0.01994473199 | U40: 0.01994473199 | V40: 0.01994473199
A41: 294.0355119 | B41: 3.753796999 | C41: 2.077115873 | K41: 0 | M41: 173.3823427 | N41: 5 | O41: 284.2110152 | P41: 11.06101521 | Q41: 89.09916775 | R41: 2.126017279 | S41: 2.124875638 | T41: 0.000233272514 | U41: -0.000233272514 | V41: 0.000233272514
A42: 303.1582816 | B42: 3.542473269 | C42: 2.037382904 | K42: 0 | M42: 173.3823427 | N42: 5 | O42: 294.0355119 | P42: 20.88551194 | Q42: 87.30112834 | R42: 2.077115873 | S42: 2.082383023 | T42: 0.001099890028 | U42: 0.001099890028 | V42: 0.001099890028
A43: 313.216707 | B43: 3.339109191 | C43: 1.997625181 | K43: 0 | M43: 173.3823427 | N43: 5 | O43: 303.1582816 | P43: 30.00828159 | Q43: 82.27944291 | R43: 2.037382904 | S43: 2.042925497 | T43: 0.0011798713 | U43: 0.0011798713 | V43: 0.0011798713 | AB43: 1. Naskar, B., A. Dey, and S.P. Moulik, Counter-ion Effect on Micellization of Ionic Surfactants: A Comprehensive Understanding with Two Representatives, Sodium Dodecyl Sulfate (SDS) and Dodecyltrimethylammonium Bromide (DTAB). Journal of Surfactants and Detergents, 2013. 16(5): p. 785-794.
A44: 322.339478 | B44: 3.151663674 | C44: 1.959523241 | K44: 0 | M44: 173.3823427 | N44: 5 | O44: 313.216707 | P44: 40.06670696 | Q44: 77.25778753 | R44: 1.997625181 | S44: 1.999421102 | T44: 0.0003902673504 | U44: 0.0003902673504 | V44: 0.0003902673504
A45: 332.3979034 | B45: 2.967800857 | C45: 1.920652145 | K45: 0 | M45: 173.3823427 | N45: 5 | O45: 322.339478 | P45: 49.18947798 | Q45: 71.97922559 | R45: 1.959523241 | S45: 1.95996357 | T45: 9.758014409e-05 | U45: 9.758014409e-05 | V45: 9.758014409e-05
A46: 341.5206716 | B46: 2.820152578 | C46: 1.888257994 | K46: 0 | M46: 173.3823427 | N46: 5 | O46: 332.3979034 | P46: 59.24790336 | Q46: 67.98495305 | R46: 1.920652145 | S46: 1.916459174 | T46: 0.0009491435982 | U46: -0.0009491435982 | V46: 0.0009491435982
A47: 351.1112698 | B47: 2.680464232 | C47: 1.856552076 | K47: 0 | M47: 173.3823427 | N47: 5 | O47: 341.5206716 | P47: 68.37067163 | Q47: 63.47698758 | R47: 1.888257994 | S47: 1.877001654 | T47: 0.00259667685 | U47: -0.00259667685 | V47: 0.00259667685
A48: 360.4679667 | B48: 2.524856114 | C48: 1.819907612 | K48: 0 | M48: 173.3823427 | N48: 5 | O48: 351.1112698 | P48: 77.96126983 | Q48: 59.99646504 | R48: 1.856552076 | S48: 1.83552069 | T48: 0.004947851516 | U48: -0.004947851516 | V48: 0.004947851516
A49: 283.7431873 | B49: 4.352343993 | C49: 2.182117847 | K49: 0 | M49: 346.7646855 | N49: 10 | O49: 360.4679667 | P49: 87.31796674 | Q49: 109.1858494 | R49: 1.819907612 | S49: 1.866856985 | T49: 0.01106170747 | U49: 0.01106170747 | V49: 0.01106170747
A50: 294.2694693 | B50: 4.133061355 | C50: 2.1448376 | K50: 0 | M50: 346.7646855 | N50: 10 | O50: 283.7431873 | P50: 10.59318734 | Q50: 104.164194 | R50: 2.182117847 | S50: 2.198704669 | T50: 0.003288697399 | U50: 0.003288697399 | V50: 0.003288697399
A51: 303.1583117 | B51: 3.845726685 | C51: 2.09393535 | K51: 0 | M51: 346.7646855 | N51: 10 | O51: 294.2694693 | P51: 21.11946932 | Q51: 96.57386968 | R51: 2.1448376 | S51: 2.153176714 | T51: 0.001685260042 | U51: 0.001685260042 | V51: 0.001685260042
A52: 313.2167644 | B52: 3.721956899 | C52: 2.071226418 | K52: 0 | M52: 346.7646855 | N52: 10 | O52: 303.1583117 | P52: 30.00831169 | Q52: 90.12657762 | R52: 2.09393535 | S52: 2.114730963 | T52: 0.004291855283 | U52: 0.004291855283 | V52: 0.004291855283
A53: 322.1056068 | B53: 3.566349806 | C53: 2.041950029 | K53: 0 | M53: 346.7646855 | N53: 10 | O53: 313.2167644 | P53: 40.06676443 | Q53: 85.87545561 | R53: 2.071226418 | S53: 2.071226449 | T53: 6.508569266e-09 | U53: 6.508569266e-09 | V53: 6.508569266e-09
A54: 332.1640568 | B54: 3.307269836 | C54: 1.991255585 | K54: 0 | M54: 346.7646855 | N54: 10 | O54: 322.1056068 | P54: 48.9556068 | Q54: 80.08320676 | R54: 2.041950029 | S54: 2.032780698 | T54: 0.001954581533 | U54: -0.001954581533 | V54: 0.001954581533
A55: 341.5207592 | B55: 3.151661812 | C55: 1.959522856 | K55: 0 | M55: 346.7646855 | N55: 10 | O55: 332.1640568 | P55: 59.01405681 | Q55: 75.8321148 | R55: 1.991255585 | S55: 1.989276196 | T55: 0.0004319210982 | U55: -0.0004319210982 | V55: 0.0004319210982
A56: 351.1113848 | B56: 2.991677394 | C56: 1.925789067 | K56: 0 | M56: 346.7646855 | N56: 10 | O56: 341.5207592 | P56: 68.3707592 | Q56: 71.20857203 | R56: 1.959522856 | S56: 1.948806871 | T56: 0.002381531246 | U56: -0.002381531246 | V56: 0.002381531246
A57: 360.2341257 | B57: 2.828110462 | C57: 1.890032417 | K57: 0 | M57: 346.7646855 | N57: 10 | O57: 351.1113848 | P57: 77.96138476 | Q57: 67.47116998 | R57: 1.925789067 | S57: 1.907325789 | T57: 0.004183835986 | U57: -0.004183835986 | V57: 0.004183835986
K58: 0 | M58: 1.768137049 | P58: 22 | S58: 1.859700568
K59: 0 | M59: 8.024168155 | P59: 22 | S59: 1.872614522
K60: 0 | M60: 20.08937188 | P60: 22 | R60: 1.846888333 | S60: 1.896084765 | T60: 0.01141711107 | U60: 0.01141711107 | V60: 0.01141711107
J61: =LOG(K61) ->  | K61: 0 | M61: 8.17 | P61: 30 | Q61: 1 | R61: =+$S$60*Q61 -> 1.896084765 | S61: 1.838307979 | T61: 0.01343947659 | U61: -0.01343947659 | V61: 0.01343947659
J62: =LOG(K62) -> 0.3010299957 | K62: 2 | M62: 8.1 | P62: 30 | Q62: 1 | R62: =+$S$60*Q62 -> 1.896084765 | S62: 1.734555115 | T62: 0.0386696449 | U62: -0.0386696449 | V62: 0.0386696449
J63: 0.6989700043 | K63: 5 | M63: 6.82 | P63: 30 | Q63: 1.075268817 | R63: 2.038800823 | S63: 2.113417678 | T63: 0.01561053552 | U63: 0.01561053552 | V63: 0.01561053552
J64: 1 | K64: 10 | M64: 5.41 | P64: 30 | Q64: 1.279569892 | R64: 2.426172979 | S64: 2.452841401 | T64: 0.004747706327 | U64: 0.004747706327 | V64: 0.004747706327
J65: 1.176091259 | K65: 15 | M65: 4.51 | P65: 30 | Q65: 1.376344086 | R65: 2.609665053 | S65: 2.675881871 | T65: 0.01088216738 | U65: 0.01088216738 | V65: 0.01088216738
J66: 1.397940009 | K66: 25 | M66: 3.42 | P66: 30 | Q66: 1.494623656 | R66: 2.833933144 | S66: 2.986094248 | T66: 0.02271391053 | U66: 0.02271391053 | V66: 0.02271391053
J67: 1.698970004 | K67: 50 | M67: 2.065678137 | P67: 30 | Q67: 1.784946237 | R67: 3.384409366 | S67: 3.465752329 | T67: 0.01031463551 | U67: 0.01031463551 | V67: 0.01031463551
J68: 2 | K68: 100 | M68: 1.220602091 | P68: 30 | Q68: 2.258064516 | R68: 4.281481728 | S68: 4.024772644 | T68: 0.02685274252 | U68: -0.02685274252 | V68: 0.02685274252
J69: 2.301029996 | K69: 200 | M69: 0.7212495683 | P69: 30 | Q69: 2.505376344 | R69: 4.750405918 | S69: 4.675815325 | T69: 0.006873371257 | U69: -0.006873371257 | V69: 0.006873371257
J70: 2.602059991 | K70: 400 | M70: 0.4261838838 | P70: 30 | Q70: 2.967741935 | R70: 5.627090271 | S70: 5.433453075 | T70: 0.01520796155 | U70: -0.01520796155 | V70: 0.01520796155
K71: 800 | M71: 0.2518305879 | P71: 30 | R71: 6.77 | S71: 6.314738874 | T71: 0.03023327232 | U71: -0.03023327232 | V71: 0.03023327232
K72: 10 | M72: 2 | N72: 0.1 | P72: 37 | S72: =IF(K72=0, $P$7+$P$8*(1-EXP(-$P$6*M72))-($P$9*(P72)), ($P$7+$P$8*(1-EXP(-$P$6*M72))-($P$9*(P72)))*$P$10*EXP(0.5*LOG(K72))) -> 2.402826285
AF85: =SUM(AD88:AD156) -> 0
AF100: =(AE100-Y100)^2 -> 0
AF106: =(AE106-Y106)^2 -> 0
AF116: =(AE116-Y116)^2 -> 0
AF128: =(AE128-Y128)^2 -> 0
AF140: =(AE140-Y140)^2 -> 0
AF147: =(AE147-Y147)^2 -> 0
AF151: =(AE151-Y151)^2 -> 0
AF154: =(AE154-Y154)^2 -> 0

Sheet CMC SDS (hidden)
E42: Equation parameters
G43: CMC0 | H43: 6.256811854
G44: k | H44: 0.07115360174
D45: Inputs | G45: e | H45: 0.07290086631
G46: b | H46: 0.9726396867 | I46: Beta | J46: 0.7590225117 | M46: AFE | N46: AAFE
L47: =SUM(L49:L63) -> 0.1896698437 | M47: =10^(SUM(M49:M63)/COUNTA(M49:M63)) -> 1.017583971 | N47: =10^(SUM(N49:N63)/COUNTA(N49:N63)) -> 1.031686734
D48: Calculator | H48: NaCL (mM) | I48: Meas CMC (mM) | J48: Temp celcius | K48: Calc CMC (mM)
H49: 0 | I49: 8.17 | J49: 30 | K49: =$H$43*EXP(-$H$44*H49^$H$46)+$H$45*J49 -> 8.443837843 | L49: =ABS(LOG(K49/I49)) -> 0.01431782791 | M49: =LOG(K49/I49) -> 0.01431782791 | N49: =ABS(M49) -> 0.01431782791
H50: 2 | I50: 8.1 | J50: 30 | K50: =$H$43*EXP(-$H$44*H50^$H$46)+$H$45*J50 -> 7.628429087 | L50: 0.02604990543 | M50: =LOG(K50/I50) -> -0.02604990543 | N50: =ABS(M50) -> 0.02604990543
H51: 5 | I51: 6.82 | J51: 30 | K51: =$H$43*EXP(-$H$44*H51^$H$46)+$H$45*J51 -> 6.63847198 | L51: 0.01171624815 | M51: -0.01171624815 | N51: 0.01171624815
H52: 10 | I52: 5.41 | J52: 30 | K52: 5.394803391 | L52: 0.001221643278 | M52: -0.001221643278 | N52: 0.001221643278
H53: 15 | I53: 4.51 | J53: 30 | K53: 4.509395499 | L53: 5.821484681e-05 | M53: -5.821484681e-05 | N53: 5.821484681e-05
H54: 25 | I54: 3.42 | J54: 30 | K54: =$H$43*EXP(-$H$44*H54^$H$46)+$H$45*J54 -> 3.414295486 | L54: =ABS(LOG(K54/I54)) -> 0.0007250022102 | M54: -0.0007250022102 | N54: 0.0007250022102
H55: 0 | I55: 8.08 | J55: 25 | K55: 8.079333511 | L55: =ABS(LOG(K55/I55)) -> 3.582478763e-05 | M55: =LOG(K55/I55) -> -3.582478763e-05 | N55: =ABS(M55) -> 3.582478763e-05
H56: 5 | I56: 6.09 | J56: 25 | K56: 6.273967649 | L56: =ABS(LOG(K56/I56)) -> 0.01292498231 | M56: =LOG(K56/I56) -> 0.01292498231 | N56: =ABS(M56) -> 0.01292498231
H57: 10 | I57: 4.61 | J57: 25 | K57: 5.03029906 | L57: 0.03789287996 | M57: 0.03789287996 | N57: 0.03789287996
H58: 15 | I58: 3.84 | J58: 25 | K58: 4.144891168 | L58: 0.0331819074 | M58: 0.0331819074 | N58: 0.0331819074
H59: 20 | I59: 3.27 | J59: 25 | K59: 3.50890708 | L59: 0.0306241151 | M59: 0.0306241151 | N59: 0.0306241151
H60: 30 | I60: 2.73 | J60: 25 | K60: 2.71722977 | L60: 0.002036282998 | M60: -0.002036282998 | N60: 0.002036282998
H61: 40 | I61: 2.3 | J61: 25 | K61: 2.300000319 | L61: 6.030411519e-08 | M61: =LOG(K61/I61) -> 6.030411519e-08 | N61: =ABS(M61) -> 6.030411519e-08
H62: 50 | I62: 1.99 | J62: 25 | K62: 2.078442553 | L62: 0.01888494903 | M62: 0.01888494903 | N62: 0.01888494903

Sheet Allinputs
A1: Surfactant | B1: kc | C1: r0 | D1: r1 | E1: alpha | F1: Se | G1: CMC0 | H1: k | I1: e | J1: b | K1: MW | L1: Isionic | M1: Temp min size | N1: Temp max size | O1: Temp min CMC | P1: Temp max CMC | Q1: Counterion min size | R1: Counterion max size | S1: Counterion min CMC | T1: Counterion max CMC | U1: csrufmin | V1: csurfmax | W1: AFE size | X1: AAFE size | Y1: AFE CMC | Z1: AAFE CMC
A2: SDS or SLS | B2: 0.00649978741 | C2: 1.951108244 | D2: 0.3278326842 | E2: 0.004325169614 | F2: 0.8117745348 | G2: 6.256811854 | H2: 0.07115360174 | I2: 0.07290086631 | J2: 0.9726396867 | K2: 288.38 | L2: Yes | M2: 10.59318734 | N2: 87.31796674 | O2: 25 | P2: 30 | Q2: 0 | R2: 800 | S2: 0 | T2: 50 | U2: 0.2518305879 | V2: 346 | W2: 0.9995181448 | X2: 1.013297293 | Y2: 1.017583971 | Z2: 1.031686734
A3: DTAB | B3: 0.001627597135 | C3: 0 | D3: 8.173965198 | E3: 0.02018223202 | F3: 0.8270972089 | G3: 14.88365791 | H3: 0.0552024081 | I3: 0.02466926259 | J3: 0.6308628137 | K3: 308.34 | L3: Yes | M3: 19.5 | N3: 30 | O3: 17 | P3: 30 | Q3: 0 | R3: 50 | S3: 0 | T3: 50 | U3: 130 | V3: 999 | W3: 0.978973474 | X3: 1.087790209 | Y3: 0.9959792045 | Z3: 1.06556132
A4: DTAC | B4: 0.0006679312567 | C4: 0 | D4: 18.40381186 | E4: 0 | F4: 0.3567076219 | G4: 14.85705156 | H4: 0.2528098111 | I4: 0 | J4: 0.3417298675 | K4: 263.95 | L4: Yes | M4: 19.5 | N4: 25 | O4: 25 | P4: 25 | Q4: 0 | R4: 994 | S4: 0 | T4: 4300 | U4: 150 | V4: 1000 | W4: 1.018608011 | X4: 1.133829138 | Y4: 1.028281574 | Z4: 1.18248799
A5: Polysorbate 20 mono (PS20M orTween 20) | B5: 0.002150452709 | C5: 1.539941634 | D5: 0.4998411306 | E5: -0.032457769 | F5: 0.8746464487 | G5: 1.64175564 | H5: 0.5 | I5: -0.01498525814 | J5: 0.5 | K5: 1228 | L5: No | M5: 4 | N5: 50 | O5: 4 | P5: 50 | Q5: 0 | R5: 0 | S5: 0 | T5: 0 | U5: 1.6 | V5: 1.6 | W5: 0.9657328368 | X5: 1.060461722 | Y5: 0.9778622588 | Z5: 1.059878368

Sheet Size DTAB (hidden)
G3: vSDS=4.36*10-22
E4: Equation parameters
E6: kc | F6: 0.001627597135
E7: r0 | F7: 0
E8: r1 | F8: 8.173965198
E9: alpha | F9: 0.02018223202 | I9: Calculator | K9: AFE | L9: AAFE
C10: Inputs | E10: Se | F10: 0.8270972089 | K10: =10^(SUM(K14:K71)/COUNTA(K14:K71)) -> 0.978973474 | L10: =10^(SUM(L14:L71)/COUNTA(L14:L71)) -> 1.087790209
A11: =MAX(A14:A57) -> 50 | C11: =MAX(C14:C57) -> 999.1784239 | F11: =MAX(F14:F57) -> 30
A12: =MIN(A14:A57) -> 0 | C12: =MIN(C14:C57) -> 130 | F12: =MIN(F14:F57) -> 19.5 | J12: =SUM(J14:J71) -> 3.050853759
A13: Added NaBr(mM) | C13: DTAB (mM) | D13: % SDS | E13: T(K) | F13: T(°C) | G13: Aggregation | H13: Radius (nm) | I13: Calc Radius (nm)
A14: 0 | C14: 130 | D14: 0.5 | E14: 284.4448022 | F14: 30 | G14: 61.42222792 | H14: 0.95 | I14: =IF(A14=0, $F$7+$F$8*(1-EXP(-$F$6*C14))-($F$9*(F14)), ($F$7+$F$8*(1-EXP(-$F$6*C14))-($F$9*(F14)))*$F$10*EXP(0.5*LOG(A14))) -> 0.9533215991 | J14: =ABS(LOG(I14/H14))+ABS(H14-I14) -> 0.004837426635 | K14: =LOG(I14/H14) -> 0.001515827521 | L14: =ABS(K14) -> 0.001515827521
A15: 2 | C15: 130 | D15: 0.5 | E15: 294.0353997 | F15: 30 | G15: 58.19858189 | H15: 0.99 | I15: =IF(A15=0, $F$7+$F$8*(1-EXP(-$F$6*C15))-($F$9*(F15)), ($F$7+$F$8*(1-EXP(-$F$6*C15))-($F$9*(F15)))*$F$10*EXP(0.5*LOG(A15))) -> 0.9165661646 | J15: =ABS(LOG(I15/H15))+ABS(H15-I15) -> 0.1069052089 | K15: =LOG(I15/H15) -> -0.03347137352 | L15: =ABS(K15) -> 0.03347137352
A16: 5 | C16: 130 | D16: 0.5 | E16: 303.1581694 | F16: 30 | G16: 53.94749293 | H16: 1.17 | I16: =IF(A16=0, $F$7+$F$8*(1-EXP(-$F$6*C16))-($F$9*(F16)), ($F$7+$F$8*(1-EXP(-$F$6*C16))-($F$9*(F16)))*$F$10*EXP(0.5*LOG(A16))) -> 1.118343959 | J16: 0.07126650704 | K16: -0.01961046572 | L16: 0.01961046572
A17: 10 | C17: 130 | D17: 0.5 | E17: 313.2165948 | F17: 30 | G17: 49.43956052 | H17: 1.3 | I17: 1.299999631 | J17: 4.9231436e-07 | K17: -1.232832341e-07 | L17: 1.232832341e-07
A18: 25 | C18: 130 | D18: 0.5 | E18: 321.8715359 | F18: 30 | G18: 44.93159505 | H18: 1.41 | I18: 1.586188526 | J18: 0.2273242172 | K18: 0.05113569132 | L18: 0.05113569132
A19: 50 | C19: 130 | D19: 0.5 | E19: 332.3978158 | F19: 30 | G19: 35.1450376 | H19: 1.63 | I19: 1.843837473 | J19: 0.2673725052 | K19: 0.05353503257 | L19: 0.05353503257
A20: 0 | C20: 207.2911918 | F20: 19.5 | H20: 2.648625858 | I20: =IF(A20=0, $F$7+$F$8*(1-EXP(-$F$6*C20))-($F$9*(F20)), ($F$7+$F$8*(1-EXP(-$F$6*C20))-($F$9*(F20)))*$F$10*EXP(0.5*LOG(A20))) -> 1.947200925 | J20: 0.8350347799 | K20: =LOG(I20/H20) -> -0.1336098474 | L20: =ABS(K20) -> 0.1336098474
A21: 0 | C21: 406.3206997 | F21: 19.5 | H21: 3.651097742 | I21: 3.561286842 | J21: 0.1006274042 | K21: -0.0108165043 | L21: 0.0108165043
A22: 0 | C22: 601.1168569 | F22: 19.5 | H22: 4.536967703 | I22: 4.707645919 | J22: 0.1867163188 | K22: 0.01603810268 | L22: 0.01603810268
A23: 0 | C23: 800.1473431 | F23: 19.5 | H23: 5.210713919 | I23: 5.557902971 | J23: 0.3752027833 | K23: 0.02801373072 | L23: 0.02801373072
A24: 0 | C24: 999.1784239 | F24: 19.5 | H24: 6.994205366 | I24: 6.172889152 | J24: 0.8755661155 | K24: -0.05424990172 | L24: 0.05424990172
A25: 10 | C25: 130 | F25: 30 | I25: =IF(A25=0, $F$7+$F$8*(1-EXP(-$F$6*C25))-($F$9*(F25)), ($F$7+$F$8*(1-EXP(-$F$6*C25))-($F$9*(F25)))*$F$10*EXP(0.5*LOG(A25))) -> 1.299999631
Q39: =R39*1000 -> 207.2911918 | R39: 0.2072911918 | S39: 2.648625858
Q40: =R40*1000 -> 406.3206997 | R40: 0.4063206997 | S40: 3.651097742
Q41: 601.1168569 | R41: 0.6011168569 | S41: 4.536967703
Q42: 800.1473431 | R42: 0.8001473431 | S42: 5.210713919
Q43: 999.1784239 | R43: 0.9991784239 | S43: 6.994205366
V85: =SUM(T88:T156) -> 0
V100: =(U100-O100)^2 -> 0
V106: =(U106-O106)^2 -> 0
V116: =(U116-O116)^2 -> 0
V128: =(U128-O128)^2 -> 0
V140: =(U140-O140)^2 -> 0
V147: =(U147-O147)^2 -> 0
V151: =(U151-O151)^2 -> 0
V154: =(U154-O154)^2 -> 0

Sheet CMC DTAB (hidden)
L33: 17 | M33: 18
L34: 20 | M34: 14.4
L35: 25 | M35: 15.5
E42: Equation parameters
G43: CMC0 | H43: 14.88365791
G44: k | H44: 0.0552024081
D45: Inputs | G45: e | H45: 0.02466926259
G46: b | H46: 0.6308628137 | I46: Beta | J46: 0.7590225117 | M46: AFE | N46: AAFE
L47: =SUM(L49:L71) -> 8.192012608 | M47: =10^(SUM(M49:M71)/COUNTA(M49:M71)) -> 0.9959792045 | N47: =10^(SUM(N49:N71)/COUNTA(N49:N71)) -> 1.06556132
D48: Calculator | H48: NaBr(mM) | I48: Meas CMC (mM) | J48: Temp celcius | K48: Calc CMC (mM)
H49: 0 | I49: 16.9 | J49: 30 | K49: =$H$43*EXP(-$H$44*H49^$H$46)+$H$45*J49 -> 15.62373579 | L49: =ABS(LOG(K49/I49))+ABS(K49-I49) -> 1.310366027 | M49: =LOG(K49/I49) -> -0.03410181849 | N49: =ABS(M49) -> 0.03410181849
G50: =+LOG(H50) -> 0.3010299957 | H50: 2 | I50: 14.4 | J50: 30 | K50: =$H$43*EXP(-$H$44*H50^$H$46)+$H$45*J50 -> 14.40433433 | L50: =ABS(LOG(K50/I50))+ABS(K50-I50) -> 0.004465034046 | M50: =LOG(K50/I50) -> 0.000130700952 | N50: =ABS(M50) -> 0.000130700952
G51: =+LOG(H51) -> 0.6989700043 | H51: 5 | I51: 14.4 | J51: 30 | K51: =$H$43*EXP(-$H$44*H51^$H$46)+$H$45*J51 -> 13.52017894 | L51: 0.9072011079 | M51: -0.02738005241 | N51: 0.02738005241
G52: 1 | H52: 10 | I52: 11.8 | J52: 30 | K52: 12.49548555 | L52: 0.7203566777 | M52: 0.02487112926 | N52: 0.02487112926
G53: 1.397940009 | H53: 25 | I53: 9.1 | J53: 30 | K53: 10.51349942 | L53: 1.476205322 | M53: 0.06270590273 | N53: 0.06270590273
G54: 1.698970004 | H54: 50 | I54: 8.5 | J54: 30 | K54: =$H$43*EXP(-$H$44*H54^$H$46)+$H$45*J54 -> 8.500004753 | L54: 4.995960733e-06 | M54: 2.428527072e-07 | N54: 2.428527072e-07
H55: 0 | I55: 18 | J55: 17 | K55: =$H$43*EXP(-$H$44*H55^$H$46)+$H$45*J55 -> 15.30303538 | L55: 2.767459545 | M55: -0.07049492283 | N55: 0.07049492283
H56: 0 | I56: 14.4 | J56: 20 | K56: =$H$43*EXP(-$H$44*H56^$H$46)+$H$45*J56 -> 15.37704317 | L56: 1.005553507 | M56: 0.02851034141 | N56: 0.02851034141
H57: 0 | I57: 15.5 | J57: 25 | K57: =$H$43*EXP(-$H$44*H57^$H$46)+$H$45*J57 -> 15.50038948 | L57: 0.0004003916692 | M57: 1.09126744e-05 | N57: 1.09126744e-05

Sheet DTAB data (hidden)
C4: Naskar, B., A. Dey, and S.P. Moulik, Counter-ion Effect on Micellization of Ionic Surfactants: A Comprehensive Understanding with Two Representatives, Sodium Dodecyl Sulfate (SDS) and Dodecyltrimethylammonium Bromide (DTAB). Journal of Surfactants and Detergents, 2013. 16(5): p. 785-794.
R13: Br- (mM) | S13: CMC (mM) | T13: Rh nm | U13: Temp
R14: 0 | S14: 16.9 | T14: 0.95 | U14: 30
R15: 2 | S15: 14.4 | T15: 0.99 | U15: 30
R16: 5 | S16: 14.4 | T16: 1.17 | U16: 30
R17: 10 | S17: 11.8 | T17: 1.3 | U17: 30
R18: 25 | S18: 9.1 | T18: 1.41 | U18: 30
R19: 50 | S19: 8.5 | T19: 1.63 | U19: 30
C28: 1. Sharker, K.K., S.I. Yusa, and C.M. Phan, Micellar formation of cationic surfactants. Heliyon, 2019. 5(9): p. e02425.
AD31: Pa.s water viscosity at T=............................. | AE31: J.K-1
AD32: Viscosity of water | AE32: Boltzmann constant
Z33: Conc (M) | AA33: C10Cl | AB33: D M2/s | AC33: Temp deg C | AD33: μL | AE33: k | AF33: Rh
Z34: 0.8043812512 | AA34: 1.062038959 | AB34: 1.062038959e-10 | AC34: 19.5 | AD34: 0.001014569268 | AE34: 1.3806504e-23 | AF34: 1.989339824
Z35: 0.9991768386 | AA35: 0.8312672202 | AB35: 8.312672202e-11 | AC35: 19.5 | AD35: 0.001014569268 | AE35: 1.3806504e-23 | AF35: 2.541609178
Z36: 1.401471818 | AA36: 0.5956963647 | AB36: 5.956963647e-11 | AC36: 19.5 | AD36: 0.001014569268 | AE36: 1.3806504e-23 | AF36: 3.546700167
Z37: 1.998563327 | AA37: 0.2205125097 | AB37: 2.205125097e-11 | AC37: 19.5 | AD37: 0.001014569268 | AE37: 1.3806504e-23 | AF37: 9.581118093
Z38: Conc (M) | AA38: C10Br | AC38: 19.5 | AD38: 0.001014569268 | AE38: 1.3806504e-23
Z39: 0.4994841395 | AA39: 1.098261046 | AB39: 1.098261046e-10 | AC39: 19.5 | AD39: 0.001014569268 | AE39: 1.3806504e-23 | AF39: 1.923728793
Z40: 1.003411737 | AA40: 0.7710552208 | AB40: 7.710552208e-11 | AC40: 19.5 | AD40: 0.001014569268 | AE40: 1.3806504e-23 | AF40: 2.740084418
Z41: 1.198207374 | AA41: 0.6628651913 | AB41: 6.628651913e-11 | AC41: 19.5 | AD41: 0.001014569268 | AE41: 1.3806504e-23 | AF41: 3.187309311
Z42: 1.393003011 | AA42: 0.5642710934 | AB42: 5.642710934e-11 | AC42: 19.5 | AD42: 0.001014569268 | AE42: 1.3806504e-23 | AF42: 3.744222273
Z43: 1.60050285 | AA43: 0.4704749894 | AB43: 4.704749894e-11 | AC43: 19.5 | AD43: 0.001014569268 | AE43: 1.3806504e-23 | AF43: 4.490688015
Z44: 1.799533286 | AA44: 0.3430941913 | AB44: 3.430941913e-11 | AC44: 19.5 | AD44: 0.001014569268 | AE44: 1.3806504e-23 | AF44: 6.157948602
Z45: 1.994328923 | AA45: 0.2780842262 | AB45: 2.780842262e-11 | AC45: 19.5 | AD45: 0.001014569268 | AE45: 1.3806504e-23 | AF45: 7.59754131
Y46: DTAC | Z46: Conc (M) | AA46: C12Cl | AC46: 19.5 | AD46: 0.001014569268 | AE46: 1.3806504e-23
Z47: 0.2030557852 | AA47: 0.9058702264 | AB47: 9.058702264e-11 | AC47: 19.5 | AD47: 0.001014569268 | AE47: 1.3806504e-23 | AF47: 2.332294775
Z48: 0.3936170435 | AA48: 0.6772573768 | AB48: 6.772573768e-11 | AC48: 19.5 | AD48: 0.001014569268 | AE48: 1.3806504e-23 | AF48: 3.119576794
Z49: 0.6053512108 | AA49: 0.4848677922 | AB49: 4.848677922e-11 | AC49: 19.5 | AD49: 0.001014569268 | AE49: 1.3806504e-23 | AF49: 4.357386549
Z50: 1.003411737 | AA50: 0.2178716795 | AB50: 2.178716795e-11 | AC50: 19.5 | AD50: 0.001014569268 | AE50: 1.3806504e-23 | AF50: 9.697251156
Y51: DTAB | Z51: Conc (M) | AA51: C12Br | AC51: 19.5 | AD51: 0.001014569268 | AE51: 1.3806504e-23
Z52: 0.2072911918 | AA52: 0.797680197 | AB52: 7.97680197e-11 | AC52: 19.5 | AD52: 0.001014569268 | AE52: 1.3806504e-23 | AF52: 2.648625858
Z53: 0.4063206997 | AA53: 0.578663335 | AB53: 5.78663335e-11 | AC53: 19.5 | AD53: 0.001014569268 | AE53: 1.3806504e-23 | AF53: 3.651097742
Z54: 0.6011168569 | AA54: 0.465675873 | AB54: 4.65675873e-11 | AC54: 19.5 | AD54: 0.001014569268 | AE54: 1.3806504e-23 | AF54: 4.536967703
Z55: 0.8001473431 | AA55: 0.4054639017 | AB55: 4.054639017e-11 | AC55: 19.5 | AD55: 0.001014569268 | AE55: 1.3806504e-23 | AF55: 5.210713919
Z56: 0.9991784239 | AA56: 0.3020723993 | AB56: 3.020723993e-11 | AC56: 19.5 | AD56: 0.001014569268 | AE56: 1.3806504e-23 | AF56: 6.994205366
Z57: Conc (M) | AA57: C14Cl | AC57: 19.5 | AD57: 0.001014569268 | AE57: 1.3806504e-23
Z58: 0.1056589947 | AA58: 0.6580654576 | AB58: 6.580654576e-11 | AC58: 19.5 | AD58: 0.001014569268 | AE58: 1.3806504e-23 | AF58: 3.210556597
Z59: 0.2030563054 | AA59: 0.588258144 | AB59: 5.88258144e-11 | AC59: 19.5 | AD59: 0.001014569268 | AE59: 1.3806504e-23 | AF59: 3.59154636
L60: 17 | M60: 25.8 | Z60: 0.4020873366 | AA60: 0.4272931572 | AB60: 4.272931572e-11 | AC60: 19.5 | AD60: 0.001014569268 | AE60: 1.3806504e-23 | AF60: 4.944512592
L61: 25 | M61: 21 | Z61: 0.6011173522 | AA61: 0.3622838094 | AB61: 3.622838094e-11 | AC61: 19.5 | AD61: 0.001014569268 | AE61: 1.3806504e-23 | AF61: 5.831771504
L62: 25 | M62: 21.5 | Z62: 0.8001478881 | AA62: 0.2684877053 | AB62: 2.684877053e-11 | AC62: 19.5 | AD62: 0.001014569268 | AE62: 1.3806504e-23 | AF62: 7.869099233
L63: 25 | M63: 22 | O63: 17 | P63: 18 | Z63: 1.003412728 | AA63: 0.189084376 | AB63: 1.89084376e-11 | AC63: 19.5 | AD63: 0.001014569268 | AE63: 1.3806504e-23 | AF63: 11.17361699
O64: 20 | P64: 14.4 | Z64: Conc (M) | AA64: C14Br | AC64: 19.5 | AD64: 0.001014569268 | AE64: 1.3806504e-23
O65: 25 | P65: 15.5 | Z65: 0.10142513 | AA65: 0.6100873715 | AB65: 6.100873715e-11 | AC65: 19.5 | AD65: 0.001014569268 | AE65: 1.3806504e-23 | AF65: 3.463039058
Z66: 0.2030573209 | AA66: 0.4992594164 | AB66: 4.992594164e-11 | AC66: 19.5 | AD66: 0.001014569268 | AE66: 1.3806504e-23 | AF66: 4.231780767
Z67: 0.4063222354 | AA67: 0.4272931572 | AB67: 4.272931572e-11 | AC67: 19.5 | AD67: 0.001014569268 | AE67: 1.3806504e-23 | AF67: 4.944512592
Z68: 0.6011178476 | AA68: 0.2972732549 | AB68: 2.972732549e-11 | AC68: 19.5 | AD68: 0.001014569268 | AE68: 1.3806504e-23 | AF68: 7.107118994
Z69: 0.8086176362 | AA69: 0.1890837867 | AB69: 1.890837867e-11 | AC69: 19.5 | AD69: 0.001014569268 | AE69: 1.3806504e-23 | AF69: 11.17365181
Z70: 0.9991789193 | AA70: 0.06650096144 | AB70: 6.650096144e-12 | AC70: 19.5 | AD70: 0.001014569268 | AE70: 1.3806504e-23 | AF70: 31.77031354

Sheet CMC DTAC (hidden)
L33: 17 | M33: 18
L34: 20 | M34: 14.4
L35: 25 | M35: 15.5
E42: Equation parameters
G43: CMC0 | H43: 14.85705156
G44: k | H44: 0.2528098111
D45: Inputs | G45: e | H45: 0
G46: b | H46: 0.3417298675 | I46: Beta | J46: 0.7590225117 | M46: AFE | N46: AAFE
L47: =SUM(L49:L71) -> 2.385325528 | M47: =10^(SUM(M49:M71)/COUNTA(M49:M71)) -> 1.028281574 | N47: =10^(SUM(N49:N71)/COUNTA(N49:N71)) -> 1.18248799
D48: Calculator | H48: NaCl(mM) | I48: Meas CMC (mM) | J48: Temp celcius | K48: Calc CMC (mM)
H49: 0 | I49: 14.85753996 | J49: 25 | K49: =$H$43*EXP(-$H$44*H49^$H$46)+$H$45*J49 -> 14.85705156 | L49: =ABS(K49-I49)+ABS(LOG(K49/I49)) -> 0.0005026749956 | M49: =LOG(K49/I49) -> -1.427640771e-05 | N49: =ABS(M49) -> 1.427640771e-05
H50: 50.32086359 | I50: 6.335222756 | J50: 25 | K50: =$H$43*EXP(-$H$44*H50^$H$46)+$H$45*J50 -> 5.662742597 | L50: =ABS(K50-I50)+ABS(LOG(K50/I50)) -> 0.7212152277 | M50: =LOG(K50/I50) -> -0.04873506893 | N50: =ABS(M50) -> 0.04873506893
H51: 90.71821673 | I51: 4.531141897 | J51: 25 | K51: =$H$43*EXP(-$H$44*H51^$H$46)+$H$45*J51 -> 4.566315379 | L51: 0.03853172236 | M51: 0.003358240592 | N51: 0.003358240592
H52: 191.9410921 | I52: 3.197181063 | J52: 25 | K52: 3.236037303 | L52: 0.04410252687 | M52: 0.005246287227 | N52: 0.005246287227
H53: 495.6086317 | I53: 2.437714554 | J53: 25 | K53: 1.805433871 | L53: 0.7626819475 | M53: -0.1304012644 | N53: 0.1304012644
H54: 1001.720736 | I54: 0.8799229347 | J54: 25 | K54: =$H$43*EXP(-$H$44*H54^$H$46)+$H$45*J54 -> 1.017993396 | L54: 0.2013707843 | M54: 0.06330032309 | N54: 0.06330032309
H55: 1992.253437 | I55: 0.6208752257 | J55: 25 | K55: =$H$43*EXP(-$H$44*H55^$H$46)+$H$45*J55 -> 0.5005035172 | L55: 0.2139689055 | M55: -0.09359719708 | N55: 0.09359719708
H56: 2997.247463 | I56: 0.3014276847 | J56: 25 | K56: =$H$43*EXP(-$H$44*H56^$H$46)+$H$45*J56 -> 0.3011964599 | L56: 0.0005644993692 | M56: -0.0003332745808 | N56: 0.0003332745808
H57: 4298.676607 | I57: 0.0884346343 | J57: 25 | K57: =$H$43*EXP(-$H$44*H57^$H$46)+$H$45*J57 -> 0.1806371604 | L57: 0.4023872396 | M57: 0.3101847134 | N57: 0.3101847134

Sheet Size DTAC (hidden)
G3: vSDS=4.36*10-22
E4: Equation parameters
E6: kc | F6: 0.0006679312567
E7: r0 | F7: 0
E8: r1 | F8: 18.40381186
E9: alpha | F9: 0 | I9: Calculator | K9: AFE | L9: AAFE
C10: Inputs | E10: Se | F10: 0.3567076219 | K10: =10^(SUM(K14:K71)/COUNTA(K14:K71)) -> 1.018608011 | L10: =10^(SUM(L14:L71)/COUNTA(L14:L71)) -> 1.133829138
A11: =MAX(A14:A57) -> 994.4884206 | C11: =MAX(C14:C57) -> 1003.411737 | F11: =MAX(F14:F57) -> 25
A12: =MIN(A14:A57) -> 0 | C12: =MIN(C14:C57) -> 150 | F12: =MIN(F14:F57) -> 19.5 | J12: =SUM(J14:J71) -> 5.309944559
A13: Added NaCl(mM) | C13: DTAC (mM) | F13: T(°C) | G13: Aggregation | H13: Radius (nm) | I13: Calc Radius (nm)
A14: 0 | C14: 203.0557852 | F14: 19.5 | G14: 61.42222792 | H14: 2.332294775 | I14: =IF(A14=0, $F$7+$F$8*(1-EXP(-$F$6*C14))-($F$9*(F14)), ($F$7+$F$8*(1-EXP(-$F$6*C14))-($F$9*(F14)))*$F$10*EXP(0.5*LOG(A14))) -> 2.33419233 | J14: =ABS(LOG(I14/H14))+ABS(H14-I14) -> 0.002250752788 | K14: =LOG(I14/H14) -> 0.0003531982395 | L14: =ABS(K14) -> 0.0003531982395
A15: 0 | C15: 393.6170435 | F15: 19.5 | G15: 58.19858189 | H15: 3.119576794 | I15: =IF(A15=0, $F$7+$F$8*(1-EXP(-$F$6*C15))-($F$9*(F15)), ($F$7+$F$8*(1-EXP(-$F$6*C15))-($F$9*(F15)))*$F$10*EXP(0.5*LOG(A15))) -> 4.254744896 | J15: =ABS(LOG(I15/H15))+ABS(H15-I15) -> 1.269945947 | K15: =LOG(I15/H15) -> 0.1347778449 | L15: =ABS(K15) -> 0.1347778449
A16: 0 | C16: 605.3512108 | F16: 19.5 | G16: 53.94749293 | H16: 4.357386549 | I16: =IF(A16=0, $F$7+$F$8*(1-EXP(-$F$6*C16))-($F$9*(F16)), ($F$7+$F$8*(1-EXP(-$F$6*C16))-($F$9*(F16)))*$F$10*EXP(0.5*LOG(A16))) -> 6.120705955 | J16: 1.910894833 | K16: 0.1475754276 | L16: 0.1475754276
A17: 0 | C17: 1003.411737 | F17: 19.5 | G17: 49.43956052 | H17: 9.697251156 | I17: 8.9884015 | J17: 0.741815836 | K17: -0.0329661803 | L17: 0.0329661803
A18: 0 | C18: 150 | F18: 25 | G18: 44.93159505 | H18: 1.902955339 | I18: 1.754512734 | J18: 0.1837146752 | K18: -0.03527207101 | L18: 0.03527207101
A19: 97.94622587 | C19: 150 | F19: 25 | G19: 35.1450376 | H19: 2.137508803 | I19: 1.69358267 | J19: 0.5450276438 | K19: -0.1011015109 | L19: 0.1011015109
A20: 293.1617745 | C20: 150 | F20: 25 | H20: 2.250834382 | I20: =IF(A20=0, $F$7+$F$8*(1-EXP(-$F$6*C20))-($F$9*(F20)), ($F$7+$F$8*(1-EXP(-$F$6*C20))-($F$9*(F20)))*$F$10*EXP(0.5*LOG(A20))) -> 2.148792435 | J20: 0.1221910218 | K20: -0.02014907424 | L20: 0.02014907424
A21: 408.8439409 | C21: 150 | F21: 25 | H21: 2.309730522 | I21: 2.309731163 | J21: 7.609989541e-07 | K21: 1.204426372e-07 | L21: 1.204426372e-07
A22: 596.8293141 | C22: 150 | F22: 25 | H22: 2.339754008 | I22: =IF(A22=0, $F$7+$F$8*(1-EXP(-$F$6*C22))-($F$9*(F22)), ($F$7+$F$8*(1-EXP(-$F$6*C22))-($F$9*(F22)))*$F$10*EXP(0.5*LOG(A22))) -> 2.507477902 | J22: 0.1977908087 | K22: 0.03006691448 | L22: 0.03006691448
A23: 994.4884206 | C23: 150 | F23: 25 | H23: 3.094590731 | I23: 2.801492247 | J23: 0.3363122801 | K23: -0.04321379555 | L23: 0.04321379555
U25: Added NaCl (mM) | V25: temp Deg C | W25: Surf mM | X25: Rh (nm0
U26: 0 | V26: 19.5 | W26: 203.0557852 | X26: 2.332294775
U27: 0 | V27: 19.5 | W27: 393.6170435 | X27: 3.119576794
U28: 0 | V28: 19.5 | W28: 605.3512108 | X28: 4.357386549
U29: 0 | V29: 19.5 | W29: 1003.411737 | X29: 9.697251156
U30: 0 | V30: 25 | W30: 150 | X30: 1.902955339
U31: 97.94622587 | V31: 25 | W31: 150 | X31: 2.137508803
U32: 293.1617745 | V32: 25 | W32: 150 | X32: 2.250834382
U33: 408.8439409 | V33: 25 | W33: 150 | X33: 2.309730522
U34: 596.8293141 | V34: 25 | W34: 150 | X34: 2.339754008
U35: 994.4884206 | V35: 25 | W35: 150 | X35: 3.094590731
U36: 1500.600524 | V36: 25 | W36: 150 | X36: 4.20004488
U37: 1999.481486 | V37: 25 | W37: 150 | X37: 5.555012607
U38: 3004.475512 | V38: 25 | W38: 150 | X38: 8.57874902
Q39: =R39*1000 -> 207.2911918 | R39: 0.2072911918 | S39: 2.648625858 | U39: 3503.357434 | V39: 25 | W39: 150 | X39: 8.877456519
Q40: =R40*1000 -> 406.3206997 | R40: 0.4063206997 | S40: 3.651097742 | U40: 3987.779205 | V40: 25 | W40: 150 | X40: 11.34636892
Q41: 601.1168569 | R41: 0.6011168569 | S41: 4.536967703 | U41: 4508.35146 | V41: 25 | W41: 150 | X41: 12.36392068
Q42: 800.1473431 | R42: 0.8001473431 | S42: 5.210713919
Q43: 999.1784239 | R43: 0.9991784239 | S43: 6.994205366
V85: =SUM(T88:T156) -> 0
V100: =(U100-O100)^2 -> 0
V106: =(U106-O106)^2 -> 0
V116: =(U116-O116)^2 -> 0
V128: =(U128-O128)^2 -> 0
V140: =(U140-O140)^2 -> 0
V147: =(U147-O147)^2 -> 0
V151: =(U151-O151)^2 -> 0
V154: =(U154-O154)^2 -> 0

Sheet DTAC data (hidden)
R7: 1. Yamanaka, M., H. Matsuki, and S. Kaneshina, Volume Study on the Micelle Formation of Local Anesthetic Dibucaine Hydrochloride and Dodecyltrimethylammonium Chloride Mixtures. Bulletin of the Chemical Society of Japan, 1995. 68(8): p. 2159-2164.
R8: DTAC | S8: 322 cm3/mol
S9: 322
S10: =S9/(100^3) -> 0.000322 | T10: m3
R15: 1. Tehrani Bagha, A. and K. Holmberg, Solubilization of Hydrophobic Dyes in Surfactant Solutions. Materials, 2013. 6: p. 580-608.
AF19: Avogadro n° | AG19: Na | AH19: 6.02214179e+23
Q20: Added NaCl (mM) | R20: temp Deg C | S20: Surf mM | T20: Rh (nm0
Q21: 0 | R21: 19.5 | S21: 203.0557852 | T21: 2.332294775
Q22: 0 | R22: 19.5 | S22: 393.6170435 | T22: 3.119576794
Q23: 0 | R23: 19.5 | S23: 605.3512108 | T23: 4.357386549
Q24: 0 | R24: 19.5 | S24: 1003.411737 | T24: 9.697251156
Q25: 0 | R25: 25 | S25: 150 | T25: 1.902955339
Q26: 97.94622587 | R26: 25 | S26: 150 | T26: 2.137508803
Q27: 293.1617745 | R27: 25 | S27: 150 | T27: 2.250834382 | Y27: =Z27*1000 -> 0 | Z27: 0 | AA27: 53.98455197 | AB27: =AA27/$AH$19*$S$10 -> 2.88651884e-26 | AC27: =(AB27*3/4/PI())^(1/3)*1000000000 -> 1.902955339
Q28: 408.8439409 | R28: 25 | S28: 150 | T28: 2.309730522 | Y28: =Z28*1000 -> 97.94622587 | Z28: 0.09794622587 | AA28: 76.50810587 | AB28: =AA28/$AH$19*$S$10 -> 4.0908386e-26 | AC28: =(AB28*3/4/PI())^(1/3)*1000000000 -> 2.137508803
Q29: 596.8293141 | R29: 25 | S29: 150 | T29: 2.339754008 | Y29: 293.1617745 | Z29: 0.2931617745 | AA29: 89.33349718 | AB29: 4.776603922e-26 | AC29: 2.250834382
Q30: 994.4884206 | R30: 25 | S30: 150 | T30: 3.094590731 | Y30: 408.8439409 | Z30: 0.4088439409 | AA30: 96.53118879 | AB30: 5.161459805e-26 | AC30: 2.309730522
Q31: 1500.600524 | R31: 25 | S31: 150 | T31: 4.20004488 | Y31: 596.8293141 | Z31: 0.5968293141 | AA31: 100.3446711 | AB31: 5.365364223e-26 | AC31: 2.339754008
Q32: 1999.481486 | R32: 25 | S32: 150 | T32: 5.555012607 | Y32: 994.4884206 | Z32: 0.9944884206 | AA32: 232.163197 | AB32: 1.241361496e-25 | AC32: 3.094590731
Q33: 3004.475512 | R33: 25 | S33: 150 | T33: 8.57874902 | Y33: 1500.600524 | Z33: 1.500600524 | AA33: 580.424195 | AB33: 3.103490375e-25 | AC33: 4.20004488
Q34: 3503.357434 | R34: 25 | S34: 150 | T34: 8.877456519 | Y34: 1999.481486 | Z34: 1.999481486 | AA34: 1342.885118 | AB34: 7.180319279e-25 | AC34: 5.555012607
Q35: 3987.779205 | R35: 25 | S35: 150 | T35: 11.34636892 | Y35: 3004.475512 | Z35: 3.004475512 | AA35: 4946.016959 | AB35: 2.644603061e-24 | AC35: 8.57874902
Q36: 4508.35146 | R36: 25 | S36: 150 | T36: 12.36392068 | Y36: 3503.357434 | Z36: 3.503357434 | AA36: 5480.868417 | AB36: 2.930584652e-24 | AC36: 8.877456519
Y37: 3987.779205 | Z37: 3.987779205 | AA37: 11443.3825 | AB37: 6.118702105e-24 | AC37: 11.34636892
Y38: 4508.35146 | Z38: 4.50835146 | AA38: 14806.49774 | AB38: 7.916937925e-24 | AC38: 12.36392068
Q45: Added NaCl (mM) | R45: temp Deg C | S45: Surf mM | T45: CMC (mM)
Q46: 0 | R46: 25 | S46: 150 | T46: 14.85753996
Q47: 50.32086359 | R47: 25 | S47: 150 | T47: 6.335222756
Q48: 90.71821673 | R48: 25 | S48: 150 | T48: 4.531141897
Q49: 191.9410921 | R49: 25 | S49: 150 | T49: 3.197181063
Q50: 495.6086317 | R50: 25 | S50: 150 | T50: 2.437714554
Q51: 1001.720736 | R51: 25 | S51: 150 | T51: 0.8799229347
Q52: 1992.253437 | R52: 25 | S52: 150 | T52: 0.6208752257
Q53: 2997.247463 | R53: 25 | S53: 150 | T53: 0.3014276847
Q54: 4298.676607 | R54: 25 | S54: 150 | T54: 0.0884346343

Sheet CMC PS20 (hidden)
E6: 1. Nayem, J., et al., Micellar Morphology of Polysorbate 20 and 80 and Their Ester Fractions in Solution via Small-Angle Neutron Scattering. Journal of Pharmaceutical Sciences, 2020. 109(4): p. 1498-1508.
AG13: mg/mL
AG14: 2.05 | AH14: =AG14/Allinputs!$K$5*1000 -> 1.669381107
AG15: 1.5 | AH15: =AG15/Allinputs!$K$5*1000 -> 1.221498371
AG16: 1.28 | AH16: =AG16/Allinputs!$K$5*1000 -> 1.042345277
AG17: 1.22 | AH17: =AG17/Allinputs!$K$5*1000 -> 0.993485342
E42: Equation parameters
G43: CMC0 | H43: 1.64175564
G44: k | H44: 0.5
D45: Inputs | G45: e | H45: -0.01498525814
G46: b | H46: 0.5 | I46: Beta | J46: 0.7590225117 | M46: AFE | N46: AAFE
L47: =SUM(L49:L71) -> 0.2791407362 | M47: =10^(SUM(M49:M71)/COUNTA(M49:M71)) -> 0.9778622588 | N47: =10^(SUM(N49:N71)/COUNTA(N49:N71)) -> 1.059878368
D48: Calculator | H48: NaCL (mM) | I48: Meas CMC (mM) | J48: Temp celcius | K48: Calc CMC (mM)
H49: 0 | I49: 1.669381107 | J49: 4 | K49: =$H$43*EXP(-$H$44*H49^$H$46)+$H$45*J49 -> 1.581814607 | L49: =ABS(K49-I49) -> 0.0875665001 | M49: =LOG(K49/I49) -> -0.0233999125 | N49: =ABS(M49) -> 0.0233999125
H50: 0 | I50: 1.221498371 | J50: 22 | K50: =$H$43*EXP(-$H$44*H50^$H$46)+$H$45*J50 -> 1.312079961 | L50: =ABS(K50-I50) -> 0.09058158959 | M50: =LOG(K50/I50) -> 0.03106741042 | N50: =ABS(M50) -> 0.03106741042
H51: 0 | I51: 1.042345277 | J51: 40 | K51: 1.042345314 | L51: 3.758839728e-08 | M51: 1.566125309e-08 | N51: 1.566125309e-08
H52: 0 | I52: 0.993485342 | J52: 50 | K52: 0.8924927331 | L52: 0.1009926089 | M52: -0.04655677521 | N52: 0.04655677521
N88: 4 | O88: 1.67
N89: 22 | O89: 2.72
N90: 40 | O90: 2.84
N91: 50 | O91: 3.02

Sheet Size PS20M (hidden)
G3: vSDS=4.36*10-22
E4: Equation parameters
E6: kc | F6: 0.002150452709
E7: r0 | F7: 1.539941634
E8: r1 | F8: 0.4998411306
E9: alpha | F9: -0.032457769 | I9: Calculator | K9: AFE | L9: AAFE
C10: Inputs | E10: Se | F10: 0.8746464487 | K10: =10^(SUM(K14:K71)/COUNTA(K14:K71)) -> 0.9657328368 | L10: =10^(SUM(L14:L71)/COUNTA(L14:L71)) -> 1.060461722
A11: =MAX(A14:A57) -> 0 | C11: =MAX(C14:C57) -> 1.628664495 | F11: =MAX(F14:F57) -> 50
A12: =MIN(A14:A57) -> 0 | C12: =MIN(C14:C57) -> 1.628664495 | F12: =MIN(F14:F57) -> 4 | J12: =SUM(J14:J71) -> 0.610337848
C13: PS20M (mM) | D13: % PS20 | E13: T(K) | F13: T(°C) | H13: Radius (nm) | I13: Calc Radius (nm)
A14: 0 | C14: =2/Allinputs!$K$5*1000 -> 1.628664495 | D14: 0.2 | E14: =273.15+F14 -> 277.15 | F14: 4 | H14: 1.67 | I14: =IF(A14=0, $F$7+$F$8*(1-EXP(-$F$6*C14))-($F$9*(F14)), ($F$7+$F$8*(1-EXP(-$F$6*C14))-($F$9*(F14)))*$F$10*EXP(0.5*LOG(A14))) -> 1.671520274 | J14: =ABS(H14-I14) -> 0.00152027417 | K14: =LOG(I14/H14) -> 0.0003951774488 | L14: =ABS(K14) -> 0.0003951774488
A15: 0 | C15: =2/Allinputs!$K$5*1000 -> 1.628664495 | D15: 0.2 | E15: =273.15+F15 -> 295.15 | F15: 22 | H15: 2.72 | I15: =IF(A15=0, $F$7+$F$8*(1-EXP(-$F$6*C15))-($F$9*(F15)), ($F$7+$F$8*(1-EXP(-$F$6*C15))-($F$9*(F15)))*$F$10*EXP(0.5*LOG(A15))) -> 2.255760116 | J15: =ABS(H15-I15) -> 0.4642398837 | K15: =LOG(I15/H15) -> -0.08127599034 | L15: =ABS(K15) -> 0.08127599034
A16: 0 | C16: =2/Allinputs!$K$5*1000 -> 1.628664495 | D16: 0.2 | E16: 313.15 | F16: 40 | H16: 2.84 | I16: =IF(A16=0, $F$7+$F$8*(1-EXP(-$F$6*C16))-($F$9*(F16)), ($F$7+$F$8*(1-EXP(-$F$6*C16))-($F$9*(F16)))*$F$10*EXP(0.5*LOG(A16))) -> 2.839999958 | J16: 4.16519339e-08 | K16: -6.36943846e-09 | L16: 6.36943846e-09
A17: 0 | C17: =2/Allinputs!$K$5*1000 -> 1.628664495 | D17: 0.2 | E17: 323.15 | F17: 50 | H17: 3.02 | I17: 3.164577648 | J17: 0.1445776484 | K17: 0.02030881335 | L17: 0.02030881335
U38: 4 | V38: 1.67
Q39: =R39*1000 -> 207.2911918 | R39: 0.2072911918 | S39: 2.648625858 | U39: 22 | V39: 2.72
Q40: =R40*1000 -> 406.3206997 | R40: 0.4063206997 | S40: 3.651097742 | U40: 40 | V40: 2.84
Q41: 601.1168569 | R41: 0.6011168569 | S41: 4.536967703 | U41: 50 | V41: 3.02
Q42: 800.1473431 | R42: 0.8001473431 | S42: 5.210713919
Q43: 999.1784239 | R43: 0.9991784239 | S43: 6.994205366
V85: =SUM(T88:T156) -> 0
V100: =(U100-O100)^2 -> 0
V106: =(U106-O106)^2 -> 0
V116: =(U116-O116)^2 -> 0
V128: =(U128-O128)^2 -> 0
V140: =(U140-O140)^2 -> 0
V147: =(U147-O147)^2 -> 0
V151: =(U151-O151)^2 -> 0
V154: =(U154-O154)^2 -> 0
